[Event "FIDE World Rapid-ch Open 2018"]
[White "Firouzja, Alireza"]
[Black "Cheparinov, Ivan"]
[Site "St. Petersburg"]
[Round "4.19"]
[Annotator "ChessBase"]
[Result "1-0"]
[Date "2018.12.26"]
[WhiteElo "2607"]
[BlackElo "2709"]
[PlyCount "115"]
[TimeControl "900+10"]

1. e4 {[%emt 0:0:0]} e5 {[%emt 0:0:0]} 2. Nf3 {[%emt 0:0:0]} Nc6 {[%emt 0:0:0]
} 3. Bb5 {[%emt 0:0:3]} Nf6 {[%emt 0:0:0]} 4. d3 {[%emt 0:0:0]} Bc5 {[%emt 0:0:0]} 5. c3 {[%emt 0:0:5]} 0-0 {[%emt 0:0:2]} 6. Bg5 {[%emt 0:0:3]
} h6 {[%emt 0:0:13]} 7. Bh4 {[%emt 0:0:2]} g5 {[%emt 0:0:26]} 8. Bg3 {[%emt 0:0:7]} d6 {[%emt 0:0:2]} 9. Nbd2 {[%emt 0:0:10]} Nh5 {[%emt 0:1:30]
} 10. a4 {[%emt 0:3:31]} a6 {[%emt 0:1:8]} 11. Bc4 {[%emt 0:0:0]} Qf6 {[%emt 0:1:24]} 12. Qe2 {[%emt 0:2:18]} g4 {[%emt 0:0:33]} 13. Nh4 {[%emt 0:0:19]} Nf4 {[%emt 0:0:1]} 14. Bxf4 {[%emt 0:0:1]} exf4 {[%emt 0:0:5]
} 15. g3 {[%emt 0:0:2]} f3 {[%emt 0:2:13]} 16. Qd1 {[%emt 0:0:0]} Ne5 {[%emt 0:0:35]} 17. d4 {[%emt 0:0:3]} Nxc4 {[%emt 0:0:11]} 18. Nxc4 {[%emt 0:0:2]} Ba7 {[%emt 0:0:56]} 19. 0-0 {[%emt 0:1:19]} Be6 {[%emt 0:0:36]
} 20. Ne3 {[%emt 0:0:8]} Rfe8 {[%emt 0:0:15]} 21. Re1 {[%emt 0:1:7]
} c6 {[%emt 0:0:6]} 22. Nhf5 {[%emt 0:0:38]} Bxf5 {[%emt 0:0:0]} 23. Nxf5 {[%emt 0:0:4]} d5 {[%emt 0:1:57]} 24. Qd3 {[%emt 0:1:13]} Re6 {[%emt 0:0:37]} 25. exd5 {[%emt 0:0:33]} cxd5 {[%emt 0:0:3]} 26. Ne3 {[%emt 0:0:16]
} Rae8 {[%emt 0:0:12]} 27. Kf1 {[%emt 0:0:5]} Qg5 {[%emt 0:0:0]} 28. Qf5 {[%emt 0:0:5]} Qxf5 {[%emt 0:0:19]} 29. Nxf5 {[%emt 0:0:1]} h5 {[%emt 0:0:21]} 30. Ne3 {[%emt 0:0:13]} Rd8 {[%emt 0:0:8]} 31. a5 {[%emt 0:0:57]
} Kg7 {[%emt 0:0:15]} 32. Ra3 {[%emt 0:0:20]} Kg6 {[%emt 0:0:0]} 33. Rb3 {[%emt 0:0:1]} Rd7 {[%emt 0:0:23]} 34. Nc2 {[%emt 0:1:7]} h4 {[%emt 0:0:25]} 35. Nb4 {[%emt 0:0:45]} hxg3 {[%emt 0:0:11]} 36. hxg3 {[%emt 0:0:4]
} Rde7 {[%emt 0:0:11]} 37. Rd1 {[%emt 0:0:56]} Rd6 {[%emt 0:0:0]} 38. Re1 {[%emt 0:0:35]} Rde6 {[%emt 0:0:15]} 39. Rxe6+ {[%emt 0:0:49]} fxe6 {[%emt 0:0:0]} 40. Nd3 {[%emt 0:0:2]} Kf5 {[%emt 0:0:12]} 41. Ke1 {[%emt 0:0:3]
} Ke4 {[%emt 0:0:14]} 42. Kd2 {[%emt 0:0:8]} Rh7 {[%emt 0:0:0]} 43. Rb4 {[%emt 0:0:25]} Kf5 {[%emt 0:0:12]} 44. Ke3 {[%emt 0:1:1]} Re7 {[%emt 0:0:12]} 45. Ne5 {[%emt 0:0:4]} Bb8 {[%emt 0:0:18]} 46. Nd3 {[%emt 0:0:39]
} e5 {[%emt 0:0:7]} 47. dxe5 {[%emt 0:0:4]} Bxe5 {[%emt 0:0:0]} 48. Kd2 {[%emt 0:0:3]} Bf6 {[%emt 0:0:15]} 49. Rf4+ {[%emt 0:0:24]} Kg5 {[%emt 0:0:1]} 50. Rb4 {[%emt 0:0:7]} Kf5 {[%emt 0:0:16]} 51. Kd1 {[%emt 0:0:17]
} Rh7 {[%emt 0:0:13]} 52. Rb6 {[%emt 0:0:40]} Rh1+ {[%emt 0:0:0]} 53. Kc2 {[%emt 0:0:1]} Rh7 {[%emt 0:0:15]} 54. Rd6 {[%emt 0:0:5]} d4 {[%emt 0:0:1]} 55. cxd4 {[%emt 0:0:32]} Rh2 {[%emt 0:0:15]} 56. Kc3 {[%emt 0:0:5]
} Rh7 {[%emt 0:0:14]} 57. Rd5+ {[%emt 0:0:6]} Ke4 {[%emt 0:0:0]} 58. Kc4 {[%emt 0:0:8] Kxd5+} 1-0

[Event "FIDE World Rapid-ch Open 2018"]
[White "Mamedov, Rauf"]
[Black "Tsydypov, Zhamsaran"]
[Site "St. Petersburg"]
[Round "4.20"]
[Annotator "ChessBase"]
[Result "1-0"]
[Date "2018.12.26"]
[WhiteElo "2703"]
[BlackElo "2529"]
[PlyCount "53"]
[TimeControl "900+10"]

1. e4 {[%emt 0:0:0]} c5 {[%emt 0:0:0]} 2. Nc3 {[%emt 0:0:0]} d6 {[%emt 0:0:0]} 3. Nf3 {[%emt 0:0:0]} Nf6 {[%emt 0:0:4]} 4. e5 {[%emt 0:0:0]} dxe5 {[%emt 0:0:13]} 5. Nxe5 {[%emt 0:0:0]} Nbd7 {[%emt 0:0:10]} 6. d4 {[%emt 0:0:1]
} e6 {[%emt 0:0:36]} 7. Bb5 {[%emt 0:0:2]} a6 {[%emt 0:0:59]} 8. Bxd7+ {[%emt 0:0:2]} Nxd7 {[%emt 0:0:11]} 9. Qh5 {[%emt 0:0:2]} Nxe5 {[%emt 0:0:35]
} 10. dxe5 {[%emt 0:0:2]} b5 {[%emt 0:0:10]} 11. Bg5 {[%emt 0:0:0]} Qc7 {[%emt 0:0:51]} 12. 0-0-0 {[%emt 0:0:3]} Bb7 {[%emt 0:0:9]} 13. Rd2 {[%emt 0:0:31]} b4 {[%emt 0:1:36]} 14. Ne2 {[%emt 0:1:6]} Qxe5 {[%emt 0:2:11]
} 15. Rhd1 {[%emt 0:1:5]} Be7 {[%emt 0:3:51]} 16. f4 {[%emt 0:0:0]} Qe3 {[%emt 0:0:2]} 17. Bxe7 {[%emt 0:1:27]} Kxe7 {[%emt 0:0:2]} 18. Kb1 {[%emt 0:2:11]} Bd5 {[%emt 0:0:34]} 19. Rd3 {[%emt 0:3:27]} Qe4 {[%emt 0:0:49]
} 20. Ng3 {[%emt 0:2:21]} Qxf4 {[%emt 0:0:31]} 21. Rxd5 {[%emt 0:0:4]
} exd5 {[%emt 0:0:4]} 22. Rf1 {[%emt 0:0:1]} Qd2 {[%emt 0:0:0]} 23. Qe5+ {[%emt 0:0:41]} Kf8 {[%emt 0:0:54]} 24. Qc7 {[%emt 0:0:45]} f6 {[%emt 0:0:32]} 25. Nf5 {[%emt 0:0:1]} Qxg2 {[%emt 0:0:4]} 26. Qe7+ {[%emt 0:0:1]
} Kg8 {[%emt 0:0:2]} 27. Nh6+ {[%emt 0:0:11]} 1-0

[Event "FIDE World Rapid-ch Open 2018"]
[White "Sarana, Alexey"]
[Black "Le, Quang Liem"]
[Site "St. Petersburg"]
[Round "4.21"]
[Annotator "ChessBase"]
[Result "1-0"]
[Date "2018.12.26"]
[WhiteElo "2618"]
[BlackElo "2714"]
[PlyCount "91"]
[TimeControl "900+10"]

1. d4 {[%emt 0:0:0]} Nf6 {[%emt 0:0:0]} 2. Nf3 {[%emt 0:0:0]} d5 {[%emt 0:0:0]
} 3. c4 {[%emt 0:0:0]} e6 {[%emt 0:0:0]} 4. Nc3 {[%emt 0:0:0]} Bb4 {[%emt 0:0:0]} 5. Bg5 {[%emt 0:0:0]} h6 {[%emt 0:0:7]} 6. Bxf6 {[%emt 0:0:3]
} Qxf6 {[%emt 0:0:2]} 7. e3 {[%emt 0:0:3]} 0-0 {[%emt 0:0:0]} 8. Rc1 {[%emt 0:0:1]} Rd8 {[%emt 0:0:50]} 9. a3 {[%emt 0:0:4]} Bxc3+ {[%emt 0:0:29]} 10. Rxc3 {[%emt 0:0:2]} c6 {[%emt 0:0:41]} 11. Bd3 {[%emt 0:0:10]
} dxc4 {[%emt 0:0:18]} 12. Rxc4 {[%emt 0:0:16]} b6 {[%emt 0:0:0]} 13. Rc3 {[%emt 0:2:18]} Bb7 {[%emt 0:0:6]} 14. Be4 {[%emt 0:0:8]} Qe7 {[%emt 0:1:0]} 15. Qb3 {[%emt 0:2:17]} Rc8 {[%emt 0:4:16]} 16. 0-0 {[%emt 0:0:26]
} Na6 {[%emt 0:0:4]} 17. Rfc1 {[%emt 0:0:24]} Rab8 {[%emt 0:0:0]} 18. Bxc6 {[%emt 0:0:56]} Nc5 {[%emt 0:0:2]} 19. dxc5 {[%emt 0:0:6]
} Rxc6 {[%emt 0:0:2]} 20. Nd4 {[%emt 0:3:41]} Rxc5 {[%emt 0:0:24]} 21. Rxc5 {[%emt 0:0:17]} bxc5 {[%emt 0:0:2]} 22. Nc6 {[%emt 0:0:25]} Qg5 {[%emt 0:0:0]} 23. g3 {[%emt 0:0:7]} Qg4 {[%emt 0:1:36]} 24. Nxb8 {[%emt 0:0:21]} Qf3 {[%emt 0:1:34]} 25. Kf1 {[%emt 0:0:2]} Qh1+ {[%emt 0:2:6]} 26. Ke2 {[%emt 0:0:1]
} Bf3+ {[%emt 0:0:3]} 27. Kd2 {[%emt 0:0:1]} Qxh2 {[%emt 0:0:0]} 28. Qd3 {[%emt 0:2:18]} Qxf2+ {[%emt 0:0:10]} 29. Kc3 {[%emt 0:0:2]
} Qxg3 {[%emt 0:1:24]} 30. Nd7 {[%emt 0:1:18]} h5 {[%emt 0:0:13]} 31. Rf1 {[%emt 0:0:40]
} Bg2 {[%emt 0:0:16]} 32. Rf4 {[%emt 0:0:18]} h4 {[%emt 0:0:0]} 33. Ne5 {[%emt 0:0:24]} f6 {[%emt 0:0:3]} 34. Ng6 {[%emt 0:2:0]} h3 {[%emt 0:0:13]
} 35. Rh4 {[%emt 0:0:27]} Kf7 {[%emt 0:0:44]} 36. Nh8+ {[%emt 0:0:43]
} Ke7 {[%emt 0:0:5]} 37. Ng6+ {[%emt 0:0:14]} Kf7 {[%emt 0:0:0]} 38. Rh8 {[%emt 0:0:29]} Qe1+ {[%emt 0:0:27]} 39. Kc2 {[%emt 0:0:8]} Qf2+ {[%emt 0:0:5]} 40. Kb3 {[%emt 0:0:13]} Bd5+ {[%emt 0:0:25]} 41. Ka4 {[%emt 0:0:1]
} f5 {[%emt 0:0:14]} 42. Ne5+ {[%emt 0:0:17]} Ke7 {[%emt 0:0:0]} 43. Qc3 {[%emt 0:0:7]} h2 {[%emt 0:0:9]} 44. Qxc5+ {[%emt 0:0:5]} Kf6 {[%emt 0:0:1]} 45. Ng4+ {[%emt 0:0:8]} fxg4 {[%emt 0:0:3]} 46. Qf8+ {[%emt 0:0:2]
} 1-0

[Event "FIDE World Rapid-ch Open 2018"]
[White "Novikov, Stanislav"]
[Black "Tomashevsky, Evgeny"]
[Site "St. Petersburg"]
[Round "4.22"]
[Annotator "ChessBase"]
[Result "1-0"]
[Date "2018.12.26"]
[WhiteElo "2540"]
[BlackElo "2705"]
[PlyCount "118"]
[TimeControl "900+10"]

1. e4 {[%emt 0:0:0]} e5 {[%emt 0:0:0]} 2. Nf3 {[%emt 0:0:0]} Nc6 {[%emt 0:0:0]
} 3. Bb5 {[%emt 0:0:7]} a6 {[%emt 0:0:0]} 4. Bxc6 {[%emt 0:0:0]} dxc6 {[%emt 0:0:0]} 5. 0-0 {[%emt 0:0:2]} Bd6 {[%emt 0:0:0]} 6. d4 {[%emt 0:0:4]} exd4 {[%emt 0:0:2]} 7. Qxd4 {[%emt 0:0:2]} f6 {[%emt 0:0:0]} 8. Be3 {[%emt 0:0:12]} Ne7 {[%emt 0:0:35]} 9. Nbd2 {[%emt 0:0:1]} Be6 {[%emt 0:0:10]} 10. Rad1 {[%emt 0:0:20]} Ng6 {[%emt 0:4:48]} 11. Nc4 {[%emt 0:1:1]
} Bxc4 {[%emt 0:0:5]} 12. Qxc4 {[%emt 0:0:1]} Qe7 {[%emt 0:0:0]} 13. c3 {[%emt 0:5:39]} 0-0-0 {[%emt 0:0:29]} 14. b4 {[%emt 0:1:18]} Rhe8 {[%emt 0:3:14]} 15. Rd4 {[%emt 0:0:17]} Qe6 {[%emt 0:0:11]} 16. Qxe6+ {[%emt 0:0:55]
} Rxe6 {[%emt 0:0:1]} 17. Nd2 {[%emt 0:0:38]} Ne5 {[%emt 0:0:0]} 18. f3 {[%emt 0:1:44]} Rde8 {[%emt 0:2:46]} 19. Nb3 {[%emt 0:0:33]} f5 {[%emt 0:0:2]} 20. Bf2 {[%emt 0:1:10]} fxe4 {[%emt 0:0:50]} 21. Rxe4 {[%emt 0:0:2]
} Nd3 {[%emt 0:0:1]} 22. Rxe6 {[%emt 0:0:28]} Rxe6 {[%emt 0:0:0]} 23. Nd4 {[%emt 0:1:42]} Rf6 {[%emt 0:0:3]} 24. Bg3 {[%emt 0:1:20]} c5 {[%emt 0:0:14]} 25. bxc5 {[%emt 0:0:1]} Bxc5 {[%emt 0:0:2]} 26. Rd1 {[%emt 0:0:38]
} Nf4 {[%emt 0:0:25]} 27. Kf1 {[%emt 0:0:9]} Nd5 {[%emt 0:0:0]} 28. Rd3 {[%emt 0:0:1]} Bxd4 {[%emt 0:0:57]} 29. Rxd4 {[%emt 0:0:21]} Nxc3 {[%emt 0:0:59]} 30. Be5 {[%emt 0:0:1]} Rf5 {[%emt 0:0:35]} 31. Bxg7 {[%emt 0:0:16]
} Nxa2 {[%emt 0:0:1]} 32. f4 {[%emt 0:0:24]} c5 {[%emt 0:0:0]} 33. Re4 {[%emt 0:0:7]} Rf7 {[%emt 0:0:3]} 34. Ba1 {[%emt 0:0:27]} b5 {[%emt 0:0:9]} 35. g4 {[%emt 0:0:5]} c4 {[%emt 0:0:24]} 36. Ke2 {[%emt 0:0:0]} Nb4 {[%emt 0:0:8]} 37. g5 {[%emt 0:0:7]} Nd5 {[%emt 0:0:7]} 38. Be5 {[%emt 0:0:4]} Kd7 {[%emt 0:0:2]} 39. h4 {[%emt 0:0:3]} Ne7 {[%emt 0:0:0]} 40. h5 {[%emt 0:0:4]} Nf5 {[%emt 0:0:1]} 41. Kf3 {[%emt 0:0:4]} a5 {[%emt 0:0:17]} 42. Kg4 {[%emt 0:0:6]} Ne7 {[%emt 0:0:0]} 43. Bf6 {[%emt 0:0:15]
} Nd5 {[%emt 0:0:6]} 44. Bd4 {[%emt 0:0:12]} Ne7 {[%emt 0:0:0]} 45. Bf6 {[%emt 0:0:7]} Nd5 {[%emt 0:0:6]} 46. Be5 {[%emt 0:0:17]} Ne7 {[%emt 0:0:28]} 47. Rd4+ {[%emt 0:0:2]} Ke8 {[%emt 0:0:18]} 48. Rd6 {[%emt 0:0:10]
} b4 {[%emt 0:0:5]} 49. g6 {[%emt 0:0:4]} hxg6 {[%emt 0:0:0]} 50. hxg6 {[%emt 0:0:2]} Rf8 {[%emt 0:0:3]} 51. g7 {[%emt 0:0:13]} Rg8 {[%emt 0:0:3]} 52. f5 {[%emt 0:0:5]} c3 {[%emt 0:0:10]} 53. f6 {[%emt 0:0:0]} c2 {[%emt 0:0:2]} 54. Bb2 {[%emt 0:0:10]} Kf7 {[%emt 0:0:20]} 55. Kg5 {[%emt 0:0:37]} Rc8 {[%emt 0:0:11]} 56. Rd7 {[%emt 0:0:26]} c1=Q+ {[%emt 0:0:33]
} 57. Bxc1 {[%emt 0:0:1]} Rc5+ {[%emt 0:0:1]} 58. Kh6 {[%emt 0:0:25]
} Kxf6 {[%emt 0:0:5]} 59. Bb2+ {[%emt 0:0:7]} Kf5 {[%emt 0:0:0]} 1-0

[Event "FIDE World Rapid-ch Open 2018"]
[White "Grischuk, Alexander"]
[Black "Rakhmanov, Aleksandr"]
[Site "St. Petersburg"]
[Round "4.23"]
[Annotator "RC"]
[Result "1-0"]
[Date "2018.12.26"]
[WhiteElo "2771"]
[BlackElo "2629"]
[PlyCount "129"]
[TimeControl "900+10"]

1. Nf3 {[%emt 0:0:0]} Nf6 {[%emt 0:0:3]} 2. g3 {[%emt 0:0:0]} g6 {[%emt 0:0:2]
} 3. c4 {[%emt 0:0:3]} c6 {[%emt 0:0:29]} 4. b3 {[%emt 0:0:0]} Bg7 {[%emt 0:0:2]} 5. Bb2 {[%emt 0:0:2]} 0-0 {[%emt 0:0:4]} 6. Bg2 {[%emt 0:0:5]
} d5 {[%emt 0:0:11]} 7. 0-0 {[%emt 0:0:6]} Bg4 {[%emt 0:0:18]
} 8. d3 {[%emt 0:0:7]} Bxf3 {[%emt 0:0:27]} 9. Bxf3 {[%emt 0:0:2]} Nbd7 {[%emt 0:1:28]
} 10. Nd2 {[%emt 0:0:59]} e6 {[%emt 0:0:13]} 11. Qc2 {[%emt 0:0:0]} Ne8 {[%emt 0:0:16]} 12. d4 {[%emt 0:0:7]} Nd6 {[%emt 0:0:23]} 13. e3 {[%emt 0:0:39]} f5 {[%emt 0:1:7]} 14. Ba3 {[%emt 0:3:14]} Nf6 {[%emt 0:0:0]} 15. Bg2 {[%emt 0:0:1]} Nfe4 {[%emt 0:1:45]} 16. Nf3 {[%emt 0:0:43]} Qa5 {[%emt 0:0:56]} 17. Bb2 {[%emt 0:0:38]} Nf7 {[%emt 0:2:56]} 18. a4 {[%emt 0:0:34]
} Rfc8 {[%emt 0:0:53]} 19. Rfd1 {[%emt 0:0:24]} Qd8 {[%emt 0:0:0]} 20. Ne1 {[%emt 0:0:18]} a5 {[%emt 0:0:5]} 21. Nd3 {[%emt 0:0:5]} g5 {[%emt 0:0:55]} 22. f3 {[%emt 0:0:36]} Nf6 {[%emt 0:0:16]} 23. Nf2 {[%emt 0:3:22]
} h5 {[%emt 0:0:38]} 24. e4 {[%emt 0:0:13]} dxe4 {[%emt 0:0:0]} 25. fxe4 {[%emt 0:0:5]} Qd7 {[%emt 0:0:31]} 26. Qe2 {[%emt 0:0:37]} Re8 {[%emt 0:0:16]} 27. e5 {[%emt 0:0:15]} Ng4 {[%emt 0:0:9]} 28. Nd3 {[%emt 0:0:2]
} Qc7 {[%emt 0:1:42]} 29. h3 {[%emt 0:2:21]} Ngh6 {[%emt 0:0:0]} 30. Qxh5 {[%emt 0:0:2]} Qb6 {[%emt 0:0:19]} 31. Ra3 {[%emt 0:1:42]} Rad8 {[%emt 0:0:13]} 32. c5 {[%emt 0:0:2]} Qc7 {[%emt 0:0:6]} 33. Raa1 {[%emt 0:0:14]
} g4 {[%emt 0:0:21]} 34. Nf4 {[%emt 0:0:23]} Qe7 {[%emt 0:0:0]} 35. Bc3 {[%emt 0:0:28]} gxh3 {[%emt 0:0:28]} 36. Bxh3 {[%emt 0:0:9]} Bxe5 {[%emt 0:0:12]} 37. Ng6 {[%emt 0:1:35]} Qg5 {[%emt 0:0:1]} 38. Qxg5 {[%emt 0:0:3]
} Nxg5 {[%emt 0:0:1]} 39. Nxe5 {[%emt 0:0:25]} Nxh3+ {[%emt 0:0:0]} 40. Kg2 {[%emt 0:0:1]} Ng5 {[%emt 0:0:1]} 41. Bxa5 {[%emt 0:0:2]} Rd5 {[%emt 0:0:27]} 42. Bd2 {[%emt 0:0:18]} Nhf7 {[%emt 0:0:4]} 43. Bxg5 {[%emt 0:0:1]
} Nxg5 {[%emt 0:0:1]} 44. b4 {[%emt 0:0:10]} Nf7 {[%emt 0:0:0]} 45. Ng6 {[%emt 0:0:11]} Kg7 {[%emt 0:0:8]} 46. Nf4 {[%emt 0:0:1]} Rd7 {[%emt 0:0:1]} 47. b5 {[%emt 0:0:2]} Kf6 {[%emt 0:0:18]} 48. bxc6 {[%emt 0:0:13]
} bxc6 {[%emt 0:0:2]} 49. a5 {[%emt 0:0:1]} Ra8 {[%emt 0:0:0]} 50. Ra4 {[%emt 0:0:8]} Rb7 {[%emt 0:0:6]} 51. Rd2 {[%emt 0:0:20]} Ng5 {[%emt 0:0:18]} 52. a6 {[%emt 0:0:19]} Rb3 {[%emt 0:0:2]} 53. Rda2 {[%emt 0:0:28]
} Ne4 {[%emt 0:0:6]} 54. R4a3 {[%emt 0:0:1]} Rb4 {[%emt 0:0:0]} 55. Ne2 {[%emt 0:0:6]} e5 {[%emt 0:0:16]} 56. dxe5+ {[%emt 0:0:21]} Kxe5 {[%emt 0:0:1]} 57. a7 {[%emt 0:0:2]} Rb5 {[%emt 0:0:13]} 58. Ra6 {[%emt 0:0:26]
} Kd5 {[%emt 0:0:21]} 59. Nf4+ {[%emt 0:0:6]} Kxc5 {[%emt 0:0:0]} 60. Ne6+ {[%emt 0:0:21]} Kd6 {[%emt 0:0:7]} 61. Nd4 {[%emt 0:0:1]} Rc5 {[%emt 0:0:9]} 62. Rb2 {[%emt 0:0:2]} Kd5 {[%emt 0:0:20]} 63. Rb8 {[%emt 0:0:11]
} Kxd4 {[%emt 0:0:10]} 64. Rxa8 {[%emt 0:0:1]} Rc2+ {[%emt 0:0:0]} 65. Kh3 {[%emt 0:0:8]} 1-0

[Event "FIDE World Rapid-ch Open 2018"]
[White "Shaposhnikov, Evgeny"]
[Black "Guseinov, Gadir"]
[Site "St. Petersburg"]
[Round "4.24"]
[Annotator "ChessBase"]
[Result "0-1"]
[Date "2018.12.26"]
[WhiteElo "2576"]
[BlackElo "2664"]
[PlyCount "84"]
[TimeControl "900+10"]

1. e4 {[%emt 0:0:0]} c5 {[%emt 0:0:0]} 2. Nf3 {[%emt 0:0:0]} g6 {[%emt 0:0:0]} 3. Bc4 {[%emt 0:1:14]} Bg7 {[%emt 0:0:0]} 4. c3 {[%emt 0:0:7]} d6 {[%emt 0:0:17]} 5. d4 {[%emt 0:0:23]} cxd4 {[%emt 0:0:10]} 6. cxd4 {[%emt 0:0:0]} Nf6 {[%emt 0:0:2]} 7. Qe2 {[%emt 0:1:16]} 0-0 {[%emt 0:0:15]} 8. 0-0 {[%emt 0:0:12]} Bg4 {[%emt 0:3:4]} 9. e5 {[%emt 0:0:17]} dxe5 {[%emt 0:0:0]} 10. dxe5 {[%emt 0:0:2]} Nfd7 {[%emt 0:0:5]} 11. e6 {[%emt 0:0:26]} Ne5 {[%emt 0:0:47]} 12. exf7+ {[%emt 0:0:9]} Kh8 {[%emt 0:0:1]} 13. Rd1 {[%emt 0:2:26]
} Qc7 {[%emt 0:0:13]} 14. Bd5 {[%emt 0:1:47]} Nbc6 {[%emt 0:0:0]} 15. Nc3 {[%emt 0:0:42]} e6 {[%emt 0:1:1]} 16. h3 {[%emt 0:2:43]} Bxf3 {[%emt 0:0:32]} 17. Bxf3 {[%emt 0:0:2]} Nd4 {[%emt 0:0:8]} 18. Rxd4 {[%emt 0:0:22]
} Nxf3+ {[%emt 0:0:4]} 19. Qxf3 {[%emt 0:0:9]} Bxd4 {[%emt 0:0:0]} 20. Nb5 {[%emt 0:0:6]} Qe5 {[%emt 0:2:16]} 21. Nxd4 {[%emt 0:0:32]} Qxd4 {[%emt 0:0:1]} 22. Bh6 {[%emt 0:1:32]} Qxb2 {[%emt 0:2:22]} 23. Re1 {[%emt 0:0:2]
} g5 {[%emt 0:2:3]} 24. Rxe6 {[%emt 0:0:45]} Qc1+ {[%emt 0:0:0]} 25. Kh2 {[%emt 0:0:1]} Qc7+ {[%emt 0:0:28]} 26. g3 {[%emt 0:0:59]} Qxf7 {[%emt 0:0:36]} 27. Qc3+ {[%emt 0:0:11]} Kg8 {[%emt 0:0:1]} 28. f4 {[%emt 0:1:51]
} Rae8 {[%emt 0:1:16]} 29. Re5 {[%emt 0:0:39]} Rxe5 {[%emt 0:0:0]} 30. Qxe5 {[%emt 0:0:2]} Re8 {[%emt 0:0:33]} 31. Qxg5+ {[%emt 0:0:0]} Kh8 {[%emt 0:0:1]} 32. h4 {[%emt 0:0:20]} Qg6 {[%emt 0:0:11]} 33. Qb5 {[%emt 0:0:11]} a6 {[%emt 0:0:19]} 34. Qb2+ {[%emt 0:0:8]} Kg8 {[%emt 0:0:0]} 35. Qb3+ {[%emt 0:0:15]} Qe6 {[%emt 0:0:13]} 36. f5 {[%emt 0:0:37]} Qxb3 {[%emt 0:0:9]} 37. axb3 {[%emt 0:0:1]} a5 {[%emt 0:0:2]} 38. g4 {[%emt 0:0:11]
} b5 {[%emt 0:0:3]} 39. h5 {[%emt 0:0:24]} a4 {[%emt 0:0:7]} 40. bxa4 bxa4 {[%emt 0:0:0]} 41. g5 {[%emt 0:0:13]} a3 {[%emt 0:0:25]} 42. g6 {[%emt 0:0:1]} Re5 {[%emt 0:0:20]} 0-1

[Event "FIDE World Rapid-ch Open 2018"]
[White "Smirin, Ilia"]
[Black "Sjugirov, Sanan"]
[Site "St. Petersburg"]
[Round "4.25"]
[Annotator "ChessBase"]
[Result "0-1"]
[Date "2018.12.26"]
[WhiteElo "2609"]
[BlackElo "2663"]
[PlyCount "72"]
[TimeControl "900+10"]

1. e4 {[%emt 0:0:0]} c5 {[%emt 0:0:0]} 2. Nf3 {[%emt 0:0:0]} d6 {[%emt 0:0:0]} 3. d4 {[%emt 0:0:0]} cxd4 {[%emt 0:0:0]} 4. Nxd4 {[%emt 0:0:0]} Nf6 {[%emt 0:0:0]} 5. Nc3 {[%emt 0:0:0]} a6 {[%emt 0:0:0]} 6. a4 {[%emt 0:0:7]
} e5 {[%emt 0:0:17]} 7. Nf3 {[%emt 0:0:4]} Be7 {[%emt 0:0:29]
} 8. Bc4 {[%emt 0:0:42]} Be6 {[%emt 0:0:5]} 9. Qe2 {[%emt 0:0:51]} Qc7 {[%emt 0:0:54]
} 10. Bb3 {[%emt 0:0:43]} Nc6 {[%emt 0:1:7]} 11. 0-0 {[%emt 0:0:0]} 0-0 {[%emt 0:2:4]} 12. Nd5 {[%emt 0:0:33]} Bxd5 {[%emt 0:0:11]} 13. exd5 {[%emt 0:0:1]} Nb4 {[%emt 0:1:56]} 14. Rd1 {[%emt 0:0:35]} a5 {[%emt 0:0:3]
} 15. c3 {[%emt 0:0:30]} Na6 {[%emt 0:0:1]} 16. Bc2 {[%emt 0:0:0]} Rfe8 {[%emt 0:0:40]} 17. h3 {[%emt 0:0:27]} g6 {[%emt 0:0:3]} 18. Nh2 {[%emt 0:1:8]} Nd7 {[%emt 0:1:8]} 19. Ng4 {[%emt 0:0:49]} f5 {[%emt 0:0:0]} 20. Nh6+ {[%emt 0:1:26]} Kg7 {[%emt 0:0:1]} 21. Nxf5+ {[%emt 0:0:0]} gxf5 {[%emt 0:0:2]} 22. Qh5 {[%emt 0:0:2]} Nf6 {[%emt 0:0:58]} 23. Qxf5 {[%emt 0:0:20]} Qd7 {[%emt 0:0:51]} 24. Qg5+ {[%emt 0:1:2]} Kh8 {[%emt 0:0:1]
} 25. Bf5 {[%emt 0:0:4]} Qc7 {[%emt 0:0:9]} 26. Qh4 {[%emt 0:0:0]} Bd8 {[%emt 0:1:17]} 27. Bg5 {[%emt 0:1:13]} Ng8 {[%emt 0:0:27]} 28. b4 {[%emt 0:2:35]} Bxg5 {[%emt 0:0:45]} 29. Qxg5 {[%emt 0:0:1]} Qg7 {[%emt 0:0:6]
} 30. Qd2 {[%emt 0:0:17]} Ne7 {[%emt 0:0:13]} 31. Be6 {[%emt 0:0:0]} Ng6 {[%emt 0:0:13]} 32. g3 {[%emt 0:0:17]} Nf4 {[%emt 0:1:10]} 33. Bg4 {[%emt 0:0:14]} h5 {[%emt 0:0:4]} 34. Bf3 {[%emt 0:0:29]} Nxh3+ {[%emt 0:0:31]
} 35. Kh2 {[%emt 0:0:4]} Rf8 {[%emt 0:0:18]} 36. Qe3 {[%emt 0:0:0]} Nxf2 {[%emt 0:0:30]} 0-1

[Event "FIDE World Rapid-ch Open 2018"]
[White "Anton Guijarro, David"]
[Black "Bindrich, Falko"]
[Site "St. Petersburg"]
[Round "4.26"]
[Annotator "ChessBase"]
[Result "1-0"]
[Date "2018.12.26"]
[WhiteElo "2642"]
[BlackElo "2606"]
[PlyCount "85"]
[TimeControl "900+10"]

1. e4 {[%emt 0:0:0]} e5 {[%emt 0:0:0]} 2. Nf3 {[%emt 0:0:0]} Nf6 {[%emt 0:0:0]
} 3. d4 {[%emt 0:0:0]} Nxe4 {[%emt 0:0:0]} 4. dxe5 {[%emt 0:0:0]} d5 {[%emt 0:0:0]} 5. Nbd2 {[%emt 0:0:5]} Nc5 {[%emt 0:0:24]} 6. Be2 {[%emt 0:0:6]} Be7 {[%emt 0:0:5]} 7. 0-0 {[%emt 0:0:16]} Nc6 {[%emt 0:0:0]} 8. Re1 {[%emt 0:0:39]} 0-0 {[%emt 0:0:17]} 9. Nb3 {[%emt 0:0:45]} Nxb3 {[%emt 0:0:29]} 10. axb3 {[%emt 0:0:7]} Bg4 {[%emt 0:0:8]} 11. h3 {[%emt 0:0:9]
} Bh5 {[%emt 0:0:8]} 12. c3 {[%emt 0:0:53]} Qd7 {[%emt 0:0:0]} 13. b4 {[%emt 0:0:40]} a6 {[%emt 0:0:41]} 14. Bf4 {[%emt 0:2:1]} Nd8 {[%emt 0:1:26]
} 15. Nd4 {[%emt 0:1:52]} Bxe2 {[%emt 0:0:7]} 16. Qxe2 {[%emt 0:0:2]
} Ne6 {[%emt 0:0:34]} 17. Be3 {[%emt 0:0:3]} f5 {[%emt 0:0:0]} 18. Nxe6 {[%emt 0:0:44]} Qxe6 {[%emt 0:0:2]} 19. f4 {[%emt 0:0:2]} g5 {[%emt 0:3:11]} 20. Bc5 {[%emt 0:2:3]} Bxc5+ {[%emt 0:0:10]} 21. bxc5 {[%emt 0:0:1]
} gxf4 {[%emt 0:0:1]} 22. Qf2 {[%emt 0:1:3]} Kh8 {[%emt 0:0:0]} 23. Qxf4 {[%emt 0:0:45]} Rg8 {[%emt 0:0:58]} 24. Re2 {[%emt 0:0:20]} Rg6 {[%emt 0:0:53]} 25. Rf1 {[%emt 0:0:15]} Rf8 {[%emt 0:0:23]} 26. Kh2 Rg7 {[%emt 0:0:18]} 27. Rf3 {[%emt 0:0:44]} Rgf7 {[%emt 0:0:14]} 28. Rd3 {[%emt 0:0:15]
} Rg8 {[%emt 0:0:15]} 29. Red2 {[%emt 0:0:24]} Rfg7 {[%emt 0:0:0]} 30. Rf3 {[%emt 0:0:12]} Rg5 {[%emt 0:0:8]} 31. Kh1 {[%emt 0:0:49]} Qg6 {[%emt 0:0:15]} 32. Rff2 {[%emt 0:0:15]} Rg3 {[%emt 0:0:10]} 33. Qxf5 {[%emt 0:1:33]
} Rxg2 {[%emt 0:0:12]} 34. Qxg6 {[%emt 0:0:2]} R2xg6 {[%emt 0:0:0]} 35. Rxd5 {[%emt 0:0:2]} Re6 {[%emt 0:1:5]} 36. Rf7 {[%emt 0:0:6]} Reg6 {[%emt 0:0:41]} 37. Rd2 {[%emt 0:0:14]} Re8 {[%emt 0:0:5]} 38. Rxc7 {[%emt 0:0:26]
} Rxe5 {[%emt 0:0:2]} 39. Rd8+ {[%emt 0:0:41]} Rg8 {[%emt 0:0:0]} 40. Rxg8+ {[%emt 0:0:2]} Kxg8 {[%emt 0:0:1]} 41. Kg1 {[%emt 0:0:0]} Re1+ {[%emt 0:0:20]} 42. Kf2 {[%emt 0:0:8]} Rb1 {[%emt 0:0:4]} 43. Rxb7 {[%emt 0:0:3]} 1-0